fUSD/lending_fUSD_20250108
["ID","MTS","AMOUNT","RATE_DAILY","PERIOD"]
[348177515,1736368248584,-500.0,0.00010245,2]
[348177516,1736368248594,-224.53,0.00010245,2]
[348177517,1736368248603,-500.0,0.00010245,2]
[348177518,1736368248613,-500.0,0.00010245,2]
[348177519,1736368248622,-500.0,0.00010245,2]
[348177520,1736368248632,-500.0,0.00010245,2]
[348177521,1736368248641,-500.0,0.00010245,2]
[348177522,1736368248651,-599.37,0.00010245,2]
[348177523,1736368248660,-500.0,0.00010245,2]
[348177524,1736368248669,-500.0,0.00010245,2]
[348177525,1736368248679,-500.0,0.00010245,2]
[348177526,1736368248689,-500.0,0.00010245,2]
[348177527,1736368248699,-500.0,0.00010245,2]
[348177528,1736368248709,-500.0,0.00010245,2]
[348177529,1736368248719,-500.0,0.00010245,2]
[348177530,1736368248728,-709.75,0.00010245,2]
[348177531,1736368248738,-500.0,0.00010245,2]
[348177532,1736368248747,-500.0,0.00010245,2]
[348177533,1736368248757,-500.0,0.00010245,2]
[348177534,1736368248766,-500.0,0.00010245,2]
[348177535,1736368248776,-500.0,0.00010245,2]
[348177536,1736368248785,-500.0,0.00010245,2]
[348177537,1736368248796,-500.0,0.00010245,2]
[348177538,1736368248807,-500.0,0.00010246,2]
[348177539,1736368248817,-500.0,0.00010246,2]
[348177540,1736368248827,-504.86416809,0.00010246,2]
[348177541,1736368248837,-503.90388993,0.00010246,2]
[348177542,1736368248847,-502.82911089,0.00010246,2]
[348177543,1736368248856,-500.0,0.00010246,2]
[348177544,1736368248866,-500.0,0.00010246,2]
[348177545,1736368248876,-500.0,0.00010246,2]
[348177546,1736368248886,-500.0,0.00010246,2]
[348177547,1736368248895,-383.01,0.00010246,2]
[348177548,1736368248905,-300.06791929,0.00010246,2]
[348177549,1736368248915,-689.11,0.00010246,2]
[348177550,1736368248924,-601.54,0.00010246,2]
[348177551,1736368248934,-500.0,0.00010246,2]
[348177552,1736368248944,-500.0,0.00010246,2]
[348177553,1736368248954,-500.0,0.00010246,2]
[348177554,1736368248965,-500.0,0.00010246,2]
[348177555,1736368248975,-515.49,0.00010246,2]
[348177556,1736368248985,-500.0,0.00010246,2]
[348177557,1736368248995,-500.0,0.00010246,2]
[348177558,1736368249004,-500.0,0.00010246,2]
[348177559,1736368249013,-500.0,0.00010246,2]
[348177560,1736368249023,-500.0,0.00010246,2]
[348177561,1736368249033,-500.0,0.00010246,2]
[348177562,1736368249042,-500.0,0.00010246,2]
[348177563,1736368249052,-547.76,0.00010246,2]
[348177564,1736368249061,-500.0,0.00010246,2]
[348177565,1736368249071,-561.72,0.00010246,2]
[348177566,1736368249080,-500.0,0.00010246,2]
[348177567,1736368249090,-500.0,0.00010246,2]
[348177568,1736368249100,-500.0,0.00010246,2]
[348177569,1736368249109,-500.0,0.00010246,2]
[348177570,1736368249119,-500.0,0.00010246,2]
[348177571,1736368249128,-500.0,0.00010246,2]
[348177572,1736368249138,-152.67,0.00010267,2]
[348177573,1736368249147,-1337.95,0.00010271,2]
[348177574,1736368249157,-1592.28,0.00010271,2]
[348177575,1736368249167,-500.0,0.00010271,2]
[348177576,1736368249177,-973.46,0.00010271,2]
[348177577,1736368249187,-574.95,0.00010271,2]
[348177578,1736368249197,-500.0,0.00010271,2]
[348177579,1736368249207,-2116.97,0.00010271,2]
[348177580,1736368249219,-500.0,0.00010271,2]
[348177581,1736368249229,-500.0,0.00010271,2]
[348177582,1736368249239,-500.0,0.00010271,2]
[348177583,1736368249249,-629.22,0.00010271,2]
[348177584,1736368249259,-500.0,0.00010271,2]
[348177585,1736368249269,-500.0,0.00010271,2]
[348177586,1736368249278,-1234.63,0.00010271,2]
[348177587,1736368249288,-500.0,0.00010271,2]
[348177588,1736368249297,-1311.11,0.00010271,2]
[348177589,1736368249307,-806.87,0.00010271,2]
[348177590,1736368249316,-1622.34,0.00010271,2]
[348177591,1736368249325,-500.0,0.00010271,2]
[348177592,1736368249335,-500.0,0.00010271,2]
[348177593,1736368249344,-522.94,0.00010271,2]
[348177594,1736368249354,-253.85,0.00010271,2]
[348177595,1736368249364,-500.0,0.00010271,2]
[348177596,1736368249373,-1273.14,0.00010271,2]
[348177597,1736368249383,-3259.99,0.00010271,2]
[348177598,1736368249393,-500.0,0.00010271,2]
[348177599,1736368249403,-641.989497,0.00010272,2]
[348177600,1736368249413,-582.764278,0.00010272,2]
[348177601,1736368249422,-500.0,0.00010272,2]
[348177602,1736368249432,-500.0,0.00010272,2]
[348177603,1736368249443,-500.0,0.00010272,2]
[348177604,1736368249453,-2034.1,0.00010272,2]
[348177605,1736368249465,-826.92,0.00010272,2]
[348177606,1736368249475,-535.86,0.00010272,2]
[348177607,1736368249485,-500.0,0.00010272,2]
[348177608,1736368249494,-1233.38,0.00010272,2]
[348177609,1736368249503,-1272.24,0.00010272,2]
[348177610,1736368249513,-1087.12,0.00010272,2]
[348177611,1736368249522,-837.0,0.00010272,2]
[348177612,1736368249531,-2167.89,0.00010272,2]
[348177613,1736368249541,-1159.95,0.00010272,2]
[348177614,1736368249551,-3866.0,0.00010272,2]
[348177615,1736368249561,-3066.22,0.00010272,2]
[348177616,1736368249570,-500.0,0.00010272,2]
[348177617,1736368249580,-1537.88,0.00010272,2]
[348177618,1736368249589,-2219.74,0.00010272,2]
[348177619,1736368249598,-963.18,0.00010272,2]
[348177620,1736368249607,-1000.0,0.00010304,2]
[348177621,1736368249617,-1083.32,0.00010315,2]
[348177622,1736368249626,-1273.93,0.00010315,2]
[348177623,1736368249636,-961.71,0.00010315,2]
[348177624,1736368249645,-2501.98,0.00010315,2]
[348177625,1736368249654,-1217.07,0.00010315,2]
[348177626,1736368249663,-1922.12,0.00010315,2]
[348177627,1736368249672,-998.41,0.00010315,2]
[348177628,1736368249681,-973.74,0.00010315,2]
[348177629,1736368249691,-500.0,0.00010315,2]
[348177630,1736368249700,-1241.14,0.00010315,2]
[348177631,1736368249710,-2225.19,0.00010315,2]
[348177632,1736368249720,-1145.25,0.00010315,2]
[348177633,1736368249729,-881.98,0.00010315,2]
[348177634,1736368249739,-608.33,0.00010315,2]
[348177635,1736368249748,-500.0,0.00010315,2]
[348177636,1736368249757,-1092.64,0.00010315,2]
[348177637,1736368249767,-500.0,0.00010315,2]
[348177638,1736368249776,-758.32,0.00010315,2]
[348177639,1736368249785,-517.54,0.00010315,2]
[348177640,1736368249795,-642.39,0.00010315,2]
[348177641,1736368249807,-1229.09,0.00010315,2]
[348177642,1736368249816,-1475.27,0.00010315,2]
[348177643,1736368249826,-1991.39,0.00010315,2]
[348177644,1736368249835,-6760.9,0.00010315,2]
[348177645,1736368249846,-601.15,0.00010315,2]
[348177646,1736368249857,-528.37,0.00010315,2]
[348177647,1736368249866,-2785.37,0.00010315,2]
[348177648,1736368249876,-643.82,0.00010315,2]
[348177649,1736368249885,-500.0,0.00010315,2]
[348177650,1736368249895,-166.39605659,0.00010347,2]
[348177651,1736368249905,-1108.0,0.000104,3]
[348177652,1736368249914,-724.58,0.00010433,2]
[348177653,1736368249923,-305.15,0.00010438,2]
[348177654,1736368249933,-500.0,0.00010445,2]
[348177655,1736368249943,-633.28,0.00010446,2]
[348177656,1736368249952,-500.0,0.00010446,2]
[348177657,1736368249961,-500.0,0.00010446,2]
[348177658,1736368249972,-213.18014651,0.00010446,2]
[348177659,1736368249981,-500.0,0.00010446,2]
[348177660,1736368249990,-500.0,0.00010446,2]
[348177661,1736368249999,-500.0,0.00010446,2]
[348177662,1736368250008,-500.0,0.00010446,2]
[348177663,1736368250018,-500.0,0.00010446,2]
[348177664,1736368250027,-500.0,0.00010446,2]
[348177665,1736368250036,-500.0,0.00010446,2]
[348177666,1736368250046,-219.96616246,0.00010446,2]
[348177667,1736368250055,-201.18220201,0.00010446,2]
[348177668,1736368250064,-598.92464589,0.00010446,2]
[348177669,1736368250073,-500.0,0.00010446,2]
[348177670,1736368250083,-500.0,0.00010446,2]
[348177671,1736368250092,-500.0,0.00010446,2]
[348177672,1736368250101,-500.0,0.00010446,2]
[348177673,1736368250111,-500.0,0.00010446,2]
[348177674,1736368250120,-500.0,0.00010446,2]
[348177675,1736368250130,-500.0,0.00010446,2]
[348177676,1736368250139,-500.0,0.00010446,2]
[348177677,1736368250148,-500.0,0.00010446,2]
[348177678,1736368250157,-500.0,0.00010446,2]
[348177679,1736368250167,-500.0,0.00010446,2]
[348177680,1736368250176,-500.0,0.00010446,2]
[348177681,1736368250185,-500.0,0.00010446,2]
[348177682,1736368250195,-500.0,0.00010446,2]
[348177683,1736368250205,-500.0,0.00010446,2]
[348177684,1736368250216,-500.0,0.00010446,2]
[348177685,1736368250226,-500.0,0.00010446,2]
[348177686,1736368250235,-500.0,0.00010446,2]
[348177687,1736368250245,-190.17,0.00010446,2]
[348177688,1736368250254,-500.0,0.00010446,2]
[348177689,1736368250264,-500.0,0.00010446,2]
[348177690,1736368250273,-500.0,0.00010446,2]
[348177691,1736368250283,-500.0,0.00010446,2]
[348177692,1736368250292,-157.47,0.00010446,7]
[348177693,1736368250301,-500.0,0.00010446,2]
[348177694,1736368250310,-500.0,0.00010446,2]
[348177695,1736368250320,-592.68,0.00010446,2]
[348177696,1736368250329,-500.0,0.00010446,2]
[348177697,1736368250339,-500.0,0.00010446,2]
[348177698,1736368250349,-500.0,0.00010446,2]
[348177699,1736368250358,-500.0,0.00010446,2]
[348177700,1736368250368,-500.0,0.00010446,2]
[348177701,1736368250378,-500.0,0.00010446,2]
[348177702,1736368250387,-500.0,0.00010446,2]
[348177703,1736368250397,-28765404.60976191,0.00010447,2]
[348177704,1736368250406,-1023.03,0.00010447,2]
[348177705,1736368250415,-922.64,0.00010447,2]
[348177706,1736368250425,-903.92,0.00010447,2]
[348177707,1736368250434,-500.0,0.00010447,2]
[348177708,1736368250444,-1000.0,0.00010447,2]
[348177709,1736368250453,-660.6,0.00010447,2]
[348177710,1736368250464,-500.0,0.00010447,2]
[348177711,1736368250473,-2035.65,0.00010447,2]
[348177712,1736368250483,-1317.96,0.00010447,2]
[348177713,1736368250492,-3000.0,0.00010447,2]
[348177714,1736368250502,-500.0,0.00010466,2]
[348177715,1736368250512,-299.57964,0.00010473,2]
[348177716,1736368250522,-1079.63,0.00010475,2]
[348177717,1736368250532,-13891.66,0.00010475,2]
[348177718,1736368250541,-844.62,0.00010479,2]
[348177719,1736368250551,-158.6680711,0.000105,2]
[348177720,1736368250560,-500.0,0.00010512,2]
[348177721,1736368250569,-500.0,0.00010512,2]
[348177722,1736368250579,-197.97,0.00010512,2]
[348177723,1736368250588,-500.0,0.00010512,2]
[348177724,1736368250597,-500.0,0.00010512,2]
[348177725,1736368250607,-500.0,0.00010512,2]
[348177726,1736368250616,-500.0,0.00010512,2]
[348177727,1736368250626,-559.44,0.00010512,2]
[348177728,1736368250636,-500.0,0.00010512,2]
[348177729,1736368250645,-500.0,0.00010512,2]
[348177730,1736368250655,-500.0,0.00010512,2]
[348177731,1736368250665,-666.58,0.00010512,2]
[348177732,1736368250674,-500.0,0.00010512,2]
[348177733,1736368250683,-739.06,0.00010512,2]
[348177734,1736368250693,-686.01,0.00010512,2]
[348177735,1736368250765,-500.0,0.00010512,2]
[348177736,1736368250774,-500.0,0.00010512,2]
[348177737,1736368250784,-456.64034393,0.00010512,2]
[348177738,1736368250793,-500.0,0.00010512,2]
[348177739,1736368250803,-500.0,0.00010512,2]
[348177740,1736368250813,-500.0,0.00010512,2]
[348177741,1736368250822,-298.14,0.00010512,2]
[348177742,1736368250831,-500.0,0.00010512,2]
[348177743,1736368250841,-500.0,0.00010512,2]
[348177744,1736368250851,-500.0,0.00010512,2]
[348177745,1736368250860,-500.0,0.00010512,2]
[348177746,1736368250869,-500.0,0.00010512,2]
[348177747,1736368250878,-500.0,0.00010512,2]
[348177748,1736368250889,-500.0,0.00010512,2]
[348177749,1736368250898,-697.37,0.00010512,2]
[348177750,1736368250907,-597.05,0.00010512,2]
[348177751,1736368250916,-500.0,0.00010512,2]
[348177752,1736368250925,-612.61,0.00010512,2]
[348177753,1736368250933,-500.0,0.00010512,2]
[348177754,1736368250943,-500.0,0.00010512,2]
[348177755,1736368250952,-500.0,0.00010512,2]
[348177756,1736368250961,-500.0,0.00010512,2]
[348177757,1736368250970,-1203.05,0.00010512,2]
[348177758,1736368250979,-832.32,0.00010518,2]
[348177759,1736368250987,-500.0,0.00010518,2]
[348177760,1736368250997,-596.16,0.00010518,2]
[348177761,1736368251005,-3519.47,0.00010518,2]
[348177762,1736368251015,-1440.39,0.00010518,2]
[348177763,1736368251024,-500.0,0.00010518,2]
[348177764,1736368251033,-2840.79,0.00010518,2]
[348177765,1736368251042,-779.03,0.00010518,2]
[348177766,1736368251051,-500.0,0.00010518,2]
[348177767,1736368251060,-1471.52,0.00010518,2]
[348177768,1736368251069,-932.46,0.00010518,2]
[348177769,1736368251079,-1554.74,0.00010518,2]
[348177770,1736368251087,-736.36,0.00010518,2]
[348177771,1736368251097,-654.22,0.00010518,2]
[348177772,1736368251106,-500.0,0.00010518,2]
[348177773,1736368251115,-500.0,0.00010519,2]
[348177774,1736368251124,-500.0,0.00010519,2]
[348177775,1736368251133,-500.0,0.00010519,2]
[348177776,1736368251142,-500.0,0.00010519,2]
[348177777,1736368251151,-500.0,0.00010519,2]
[348177778,1736368251159,-500.0,0.00010519,2]
[348177779,1736368251170,-500.0,0.00010519,2]
[348177780,1736368251178,-500.0,0.00010519,2]
[348177781,1736368251187,-580.08,0.00010519,2]
[348177782,1736368251195,-570.83950298,0.00010519,2]
[348177783,1736368251204,-500.0,0.00010519,2]
[348177784,1736368251214,-500.0,0.00010519,2]
[348177785,1736368251223,-520.16598063,0.00010519,2]
[348177786,1736368251232,-500.0,0.00010519,2]
[348177787,1736368251240,-527.64,0.00010519,2]
[348177788,1736368251249,-500.0,0.00010519,2]
[348177789,1736368251258,-500.0,0.00010519,2]
[348177790,1736368251267,-593.05,0.00010519,2]
[348177791,1736368251276,-500.0,0.00010519,2]
[348177792,1736368251285,-500.0,0.00010519,2]
[348177793,1736368251294,-500.0,0.00010519,2]
[348177794,1736368251303,-663.42,0.00010519,2]
[348177795,1736368251312,-500.0,0.00010519,2]
[348177796,1736368251321,-500.0,0.00010519,2]
[348177797,1736368251330,-500.0,0.00010519,2]
[348177798,1736368251339,-500.0,0.00010519,2]
[348177799,1736368251348,-534.64,0.00010519,2]
[348177800,1736368251357,-500.0,0.00010519,2]
[348177801,1736368251366,-500.0,0.00010519,2]
[348177802,1736368251375,-500.0,0.00010519,2]
[348177803,1736368251384,-535.08,0.00010519,2]
[348177804,1736368251393,-500.0,0.00010519,2]
[348177805,1736368251402,-500.0,0.00010519,2]
[348177806,1736368251411,-538.57,0.00010519,2]
[348177807,1736368251421,-561.85,0.00010519,2]
[348177808,1736368251430,-630.51,0.00010519,2]
[348177809,1736368251439,-500.0,0.00010519,2]
[348177810,1736368251450,-2765.18,0.00010519,2]
[348177811,1736368251459,-500.0,0.00010519,2]
[348177812,1736368251469,-500.0,0.00010519,2]
[348177813,1736368251479,-2517.1,0.00010519,2]
[348177814,1736368251488,-500.0,0.00010519,2]
[348177815,1736368251497,-500.0,0.00010519,2]
[348177816,1736368251506,-500.0,0.00010519,2]
[348177817,1736368251515,-2710.85,0.00010519,2]
[348177818,1736368251525,-500.0,0.00010519,2]
[348177819,1736368251534,-500.0,0.00010519,2]
[348177820,1736368251543,-500.0,0.00010519,2]
[348177821,1736368251552,-500.0,0.00010519,2]
[348177822,1736368251561,-500.0,0.00010519,2]
[348177823,1736368251570,-500.0,0.00010519,2]
[348177824,1736368251579,-500.0,0.00010519,2]
[348177825,1736368251588,-500.0,0.00010519,2]
[348177826,1736368251598,-500.0,0.00010519,2]
[348177827,1736368251606,-500.0,0.00010519,2]
[348177828,1736368251615,-599.37,0.00010519,2]
[348177829,1736368251624,-500.0,0.00010519,2]
[348177830,1736368251633,-500.0,0.00010519,2]
[348177831,1736368251642,-500.0,0.00010519,2]
[348177832,1736368251651,-500.0,0.00010519,2]
[348177833,1736368251660,-500.0,0.00010519,2]
[348177834,1736368251670,-500.0,0.00010519,2]
[348177835,1736368251679,-709.75,0.00010519,2]
[348177836,1736368251688,-500.0,0.00010519,2]
[348177837,1736368251697,-500.0,0.00010519,2]
[348177838,1736368251706,-500.0,0.00010519,2]
[348177839,1736368251717,-500.0,0.00010519,2]
[348177840,1736368251727,-500.0,0.00010519,2]
[348177841,1736368251736,-352.56061788,0.00010519,2]
[348177842,1736368251746,-500.0,0.0001052,2]
[348177843,1736368251755,-500.0,0.0001052,2]
[348177844,1736368251764,-500.0,0.0001052,2]
[348177845,1736368251774,-500.0,0.0001052,2]
[348177846,1736368251783,-550.29,0.0001052,2]
[348177847,1736368251793,-689.11,0.0001052,2]
[348177848,1736368251803,-500.0,0.0001052,2]
[348177849,1736368251814,-500.0,0.0001052,2]
[348177850,1736368251823,-515.49,0.0001052,2]
[348177851,1736368251832,-500.0,0.0001052,2]
[348177852,1736368251843,-500.0,0.0001052,2]
[348177853,1736368251852,-500.0,0.0001052,2]
[348177854,1736368251861,-500.0,0.0001052,2]
[348177855,1736368251870,-500.0,0.0001052,2]
[348177856,1736368251881,-500.0,0.0001052,2]
[348177857,1736368251890,-547.76,0.0001052,2]
[348177858,1736368251899,-500.0,0.0001052,2]
[348177859,1736368251908,-561.72,0.0001052,2]
[348177860,1736368251918,-500.0,0.0001052,2]
[348177861,1736368251927,-500.0,0.0001052,2]
[348177862,1736368251936,-500.0,0.0001052,2]
[348177863,1736368251945,-1337.95,0.00010545,2]
[348177864,1736368251955,-1592.28,0.00010545,2]
[348177865,1736368251965,-500.0,0.00010545,2]
[348177866,1736368251974,-973.46,0.00010545,2]
[348177867,1736368251983,-574.95,0.00010545,2]
[348177868,1736368251992,-500.0,0.00010545,2]
[348177869,1736368252002,-2116.97,0.00010545,2]
[348177870,1736368252011,-500.0,0.00010545,2]
[348177871,1736368252020,-500.0,0.00010545,2]
[348177872,1736368252030,-500.0,0.00010545,2]
[348177873,1736368252039,-629.22,0.00010545,2]
[348177874,1736368252049,-500.0,0.00010545,2]
[348177875,1736368252058,-500.0,0.00010545,2]
[348177876,1736368252067,-1234.63,0.00010545,2]
[348177877,1736368252076,-500.0,0.00010545,2]
[348177878,1736368252086,-1311.11,0.00010545,2]
[348177879,1736368252095,-806.87,0.00010545,2]
[348177880,1736368252104,-1622.34,0.00010545,2]
[348177881,1736368252113,-500.0,0.00010545,2]
[348177882,1736368252122,-241.85,0.00010545,2]
[348177883,1736368252131,-522.94,0.00010545,2]
[348177884,1736368252141,-500.0,0.00010545,2]
[348177885,1736368252150,-1273.14,0.00010545,2]
[348177886,1736368252159,-3259.99,0.00010545,2]
[348177887,1736368252168,-500.0,0.00010545,2]
[348177888,1736368252177,-641.989497,0.00010546,2]
[348177889,1736368252186,-582.764278,0.00010546,2]
[348177890,1736368252195,-500.0,0.00010546,2]
[348177891,1736368252205,-500.0,0.00010546,2]
[348177892,1736368252214,-2034.1,0.00010546,2]
[348177893,1736368252223,-826.92,0.00010546,2]
[348177894,1736368252233,-535.86,0.00010546,2]
[348177895,1736368252242,-500.0,0.00010546,2]
[348177896,1736368252252,-1233.38,0.00010546,2]
[348177897,1736368252261,-1272.24,0.00010546,2]
[348177898,1736368252270,-155.329502,0.00010546,2]
[348177899,1736368252279,-1087.12,0.00010546,2]
[348177900,1736368252289,-837.0,0.00010546,2]
[348177901,1736368252298,-2167.89,0.00010546,2]
[348177902,1736368252307,-1159.95,0.00010546,2]
[348177903,1736368252316,-159.408706,0.00010546,2]
[348177904,1736368252325,-3866.0,0.00010546,2]
[348177905,1736368252334,-3066.22,0.00010546,2]
[348177906,1736368252343,-500.0,0.00010546,2]
[348177907,1736368252352,-1537.88,0.00010546,2]
[348177908,1736368252361,-2219.74,0.00010546,2]
[348177909,1736368252370,-963.18,0.00010546,2]
[348177910,1736368252379,-500.0,0.00010583,2]
[348177911,1736368252388,-1083.32,0.00010589,2]
[348177912,1736368252397,-1273.93,0.00010589,2]
[348177913,1736368252406,-961.71,0.00010589,2]
[348177914,1736368252416,-2501.98,0.00010589,2]
[348177915,1736368252425,-1217.07,0.00010589,2]
[348177916,1736368252435,-1922.12,0.00010589,2]
[348177917,1736368252444,-998.41,0.00010589,2]
[348177918,1736368252454,-973.74,0.00010589,2]
[348177919,1736368252464,-500.0,0.00010589,2]
[348177920,1736368252474,-1241.14,0.00010589,2]
[348177921,1736368252484,-2225.19,0.00010589,2]
[348177922,1736368252493,-1145.25,0.00010589,2]
[348177923,1736368252502,-881.98,0.00010589,2]
[348177924,1736368252511,-608.33,0.00010589,2]
[348177925,1736368252520,-500.0,0.00010589,2]
[348177926,1736368252529,-1092.64,0.00010589,2]
[348177927,1736368252538,-500.0,0.00010589,2]
[348177928,1736368252547,-758.32,0.00010589,2]
[348177929,1736368252556,-642.39,0.00010589,2]
[348177930,1736368252566,-1229.09,0.00010589,2]
[348177931,1736368252575,-1475.27,0.00010589,2]
[348177932,1736368252584,-1991.39,0.00010589,2]
[348177933,1736368252593,-6760.9,0.00010589,2]
[348177934,1736368252602,-601.15,0.00010589,2]
[348177935,1736368252612,-528.37,0.00010589,2]
[348177936,1736368252621,-2785.37,0.00010589,2]
[348177937,1736368252631,-643.82,0.00010589,2]
[348177938,1736368252640,-500.0,0.00010589,2]
[348177939,1736368252650,-150.0,0.00010658,2]
[348177940,1736368252660,-150.0,0.00010658,2]
[348177941,1736368252669,-150.0,0.00010658,2]
[348177942,1736368252679,-429.70395169,0.00010685,2]
[348177943,1736368252688,-5559.0,0.000107,5]
[348177944,1736368252698,-500.0,0.0001072,2]
[348177945,1736368252708,-432.08145084,0.0001072,2]
[348177946,1736368252718,-500.0,0.0001072,2]
[348177947,1736368252728,-500.0,0.0001072,2]
[348177948,1736368252738,-500.0,0.0001072,2]
[348177949,1736368252747,-500.0,0.0001072,2]
[348177950,1736368252757,-500.0,0.0001072,2]
[348177951,1736368252766,-500.0,0.0001072,2]
[348177952,1736368252776,-500.0,0.0001072,2]
[348177953,1736368252785,-500.0,0.0001072,2]
[348177954,1736368252798,-500.0,0.0001072,2]
[348177955,1736368252808,-500.0,0.0001072,2]
[348177956,1736368252817,-500.0,0.0001072,2]
[348177957,1736368252827,-500.0,0.0001072,2]
[348177958,1736368252837,-500.0,0.0001072,2]
[348177959,1736368252847,-500.0,0.0001072,2]
[348177960,1736368252857,-596.27,0.0001072,2]
[348177961,1736368252866,-299.10216994,0.0001072,2]
[348177962,1736368252876,-500.0,0.0001072,2]
[348177963,1736368252886,-500.0,0.0001072,2]
[348177964,1736368252895,-500.0,0.0001072,2]
[348177965,1736368252905,-289.82800921,0.0001072,2]
[348177966,1736368252914,-1023.03,0.00010721,2]
[348177967,1736368252924,-922.64,0.00010721,2]
[348177968,1736368252933,-903.92,0.00010721,2]
[348177969,1736368252942,-500.0,0.00010721,2]
[348177970,1736368252951,-1000.0,0.00010721,2]
[348177971,1736368252961,-660.6,0.00010721,2]
[348177972,1736368252970,-500.0,0.00010721,2]
[348177973,1736368252980,-2035.65,0.00010721,2]
[348177974,1736368252989,-1317.96,0.00010721,2]
[348177975,1736368252998,-150.0,0.00010725,2]
[348177976,1736368253008,-253.0,0.00010743,2]
[348177977,1736368253017,-500.0,0.00010786,2]
[348177978,1736368253027,-500.0,0.00010786,2]
[348177979,1736368253036,-500.0,0.00010786,2]
[348177980,1736368253046,-500.0,0.00010786,2]
[348177981,1736368253055,-500.0,0.00010786,2]
[348177982,1736368253065,-500.0,0.00010786,2]
[348177983,1736368253075,-559.44,0.00010786,2]
[348177984,1736368253085,-403.00082294,0.00010786,2]
[348177985,1736368253095,-500.0,0.00010786,2]
[348177986,1736368253104,-666.58,0.00010786,2]
[348177987,1736368253115,-500.0,0.00010786,2]
[348177988,1736368253124,-739.06,0.00010786,2]
[348177989,1736368253134,-686.01,0.00010786,2]
[348177990,1736368253144,-517.22799427,0.00010786,2]
[348177991,1736368253154,-500.0,0.00010786,2]
[348177992,1736368253163,-500.0,0.00010786,2]
[348177993,1736368253172,-500.0,0.00010786,2]
[348177994,1736368253182,-500.0,0.00010786,2]
[348177995,1736368253191,-500.0,0.00010786,2]
[348177996,1736368253201,-500.0,0.00010786,2]
[348177997,1736368253211,-329.2707614,0.00010786,2]
[348177998,1736368253223,-500.0,0.00010786,2]
[348177999,1736368253232,-500.0,0.00010786,2]
[348178000,1736368253242,-697.37,0.00010786,2]
[348178001,1736368253252,-597.05,0.00010786,2]
[348178002,1736368253261,-197.99,0.00010786,2]
[348178003,1736368253271,-612.61,0.00010786,2]
[348178004,1736368253280,-500.0,0.00010786,2]
[348178005,1736368253290,-500.0,0.00010786,2]
[348178006,1736368253299,-500.0,0.00010786,2]
[348178007,1736368253309,-185.10698301,0.00010786,2]
[348178008,1736368253319,-1203.05,0.00010786,2]
[348178009,1736368253328,-150.0,0.0001079,2]
[348178010,1736368253338,-832.32,0.00010792,2]
[348178011,1736368253347,-500.0,0.00010792,2]
[348178012,1736368253357,-596.16,0.00010792,2]
[348178013,1736368253367,-3519.47,0.00010792,2]
[348178014,1736368253376,-1440.39,0.00010792,2]